Cogmind - Beta 15 @@@ ROGUE MODE // 2025.06.01 @ 12:26:11 Player: naththebg Result: Destroyed by Tracker with Linked Autogun Performance ------------- Evolutions (8) 4000 Regions Visited (33) 6600 Robots Destroyed (92) 460 Value Destroyed (2437) 2437 Prototype IDs (70) 1400 Alien Tech Used (6) 1200 Bonus (9534) 9534 TOTAL SCORE: 25631 Bonus ------- High Alert Combat Kills 40 Follower Combat Kills 394 Registered with UFD 300 Met Optimus in HQ 500 Met Data Miner 300 Met Warlord at Base 500 MAIN.C Attacked Warlord 500 Found Hidden Lab 3000 Used Core Reset Matrix 3000 Pursued by Intercept 1000 Cogmind --------- Core Integrity 0/1450 Matter 76/300 Energy 99/100 System Corruption 1% Temperature Cool (0) Movement Core (50) Location -2/Quarantine Parts ------- > --- POWER (2) -------- (None) > --- PROPULSION (7) --- (None) > --- UTILITY (10) ----- Experimental Optical Array > --- WEAPON (5) ------- (None) > --- INVENTORY (5) ---- Experimental Powered Armor Vortex Rail (40) Warp Cannon Core Cannon Peak State ------------ > --- POWER ------------ Enhanced Nuclear Core Micro Fission Core > --- PROPULSION ------- Nuclear Pulse Thruster Cooled Nuclear Pulse Thruster Cooled Nuclear Pulse Thruster Cooled Nuclear Pulse Thruster Q-thruster Cooled Impulse Thruster Cooled Impulse Thruster > --- UTILITY ---------- Medium Storage Unit Experimental Optical Array Advanced Sensor Array Advanced Signal Interpreter Advanced Reaction Control System Experimental Cloaking Device Improved Utility Shielding Advanced Hacking Suite Deep Network Scanner Advanced System Shield > --- WEAPON ----------- Compact Mass Driver Advanced Datajack Gravity Flail Ionic Axe > --- INVENTORY -------- Vortex Chain Reactor Impulse Thruster Advanced Reaction Control System Improved Phase Shifter Experimental Powered Armor Experimental Focal Shield Vortex Rail Vortex Rail Warp Cannon [Rating: 163] Favorites ----------- Power Enhanced Nuclear Core Engine Light Deuterium Engine Power Core Enhanced Nuclear Core Reactor Micro Antimatter Reactor Propulsion Improved VTOL Module Treads Light Treads Wheel Compact Wheel Flight Unit Improved VTOL Module Utility Hacking Suite Device Advanced Sensor Array Storage Medium Storage Unit Processor Advanced Signal Interpreter Hackware Hacking Suite Protection Improved Propulsion Shielding Weapon Companion Sword Energy Gun Particle Gun Energy Cannon Heavy Plasma Cannon Ballistic Gun Assault Rifle Ballistic Cannon Assault Cannon Launcher Improved Grenade Launcher Impact Weapon Gravity Flail Slashing Weapon Companion Sword Special Melee Weapon Improved Datajack Build | -11 -10 -10 -9 -8 -8 -8 -8 -6 -6 -6 -6 -6 -6 -5 -5 -5 -5 -5 -5 -5 -4 -4 -4 -4 -4 -4 -4 -3 -3 -3 -3 -2 -2 ------- Run | Yrd Mat Min Mat Mat Sto Rec Scr Fac Was Fac Low Low Dat Pro Fac Was Fac Upp Upp War Pro Fac Was Fac Upp Upp Zhi Pro Res Arm Lab Res Qua Slots Evolved 16 | . . . 2 2 . . . 4 . . . . . . 2 . . . . . . 2 . . . . . . 2 . . 2 . Power 1 | . . . . . . . . 1 . . . . . . . . . . . . . . . . . . . . . . . . . Propulsion 4 | . . . 1 1 . . . 1 . . . . . . 1 . . . . . . . . . . . . . . . . . . Utility 8 | . . . 1 1 . . . 2 . . . . . . 1 . . . . . . 2 . . . . . . 1 . . . . Weapon 3 | . . . . . . . . . . . . . . . . . . . . . . . . . . . . . 1 . . 2 . Parts Attached 133 | 6 2 7 29 6 2 2 3 8 . 4 . . . . 2 . 11 . . 7 . 9 2 2 2 2 2 . 3 11 4 4 3 Power 13 | 1 . 2 5 . . 1 . . . 2 . . . . . . 1 . . . . . . . . . . . . . . . 1 Engine 9 | 1 . 2 5 . . 1 . . . . . . . . . . . . . . . . . . . . . . . . . . . Core 3 | . . . . . . . . . . 2 . . . . . . 1 . . . . . . . . . . . . . . . . Reactor 1 | . . . . . . . . . . . . . . . . . . . . . . . . . . . . . . . . . 1 Propulsion 37 | 2 . 2 14 3 . . . 2 . . . . . . 1 . 5 . . 3 . 1 . . . 1 . . 1 . . 1 1 Treads 7 | 2 . . 4 . . . . . . . . . . . . . . . . . . . . . . . . . . . . . 1 Leg . | . . . . . . . . . . . . . . . . . . . . . . . . . . . . . . . . . . Wheel 5 | . . . 5 . . . . . . . . . . . . . . . . . . . . . . . . . . . . . . Hover . | . . . . . . . . . . . . . . . . . . . . . . . . . . . . . . . . . . Flight 25 | . . 2 5 3 . . . 2 . . . . . . 1 . 5 . . 3 . 1 . . . 1 . . 1 . . 1 . Utility 51 | 1 2 . 6 3 1 . 1 5 . 2 . . . . 1 . 4 . . 3 . 5 1 2 1 1 2 . 1 4 2 2 1 Device 23 | . 1 . 1 2 1 . 1 2 . . . . . . 1 . 2 . . 2 . 4 1 . 1 1 . . . 1 . 2 . Storage 6 | 1 . . 1 1 . . . . . . . . . . . . . . . . . . . 1 . . 1 . . 1 . . . Processor 6 | . . . . . . . . 1 . 1 . . . . . . 1 . . 1 . . . 1 . . . . . 1 . . . Hackware 8 | . . . 1 . . . . 1 . 1 . . . . . . 1 . . . . 1 . . . . . . 1 . 1 . 1 Protection 8 | . 1 . 3 . . . . 1 . . . . . . . . . . . . . . . . . . 1 . . 1 1 . . Artifact . | . . . . . . . . . . . . . . . . . . . . . . . . . . . . . . . . . . Weapon 32 | 2 . 3 4 . 1 1 2 1 . . . . . . . . 1 . . 1 . 3 1 . 1 . . . 1 7 2 1 . Energy Gun 6 | . . . 1 . . . . . . . . . . . . . . . . 1 . 1 . . . . . . . 2 1 . . Energy Cannon 3 | . . . . . . . . 1 . . . . . . . . . . . . . . . . . . . . . 1 1 . . Ballistic Gun 7 | 2 . 2 2 . . . . . . . . . . . . . . . . . . . . . . . . . . 1 . . . Ballistic Cannon 2 | . . 1 . . . . . . . . . . . . . . . . . . . . . . . . . . . 1 . . . Launcher 4 | . . . 1 . . . . . . . . . . . . . 1 . . . . . 1 . . . . . 1 . . . . Special Weapon . | . . . . . . . . . . . . . . . . . . . . . . . . . . . . . . . . . . Impact Weapon 4 | . . . . . 1 . 1 . . . . . . . . . . . . . . 1 . . . . . . . 1 . . . Slashing Weapon 4 | . . . . . . . 1 . . . . . . . . . . . . . . 1 . . 1 . . . . 1 . . . Piercing Weapon . | . . . . . . . . . . . . . . . . . . . . . . . . . . . . . . . . . . Special Melee Weapon 2 | . . . . . . 1 . . . . . . . . . . . . . . . . . . . . . . . . . 1 . Unidentified Prototypes 38 | . . . 2 . . . 1 . . . . . . . . . 2 . . 5 . 3 1 . . 1 3 . 1 11 7 . 1 Corrupted Parts 1 | . . 1 . . . . . . . . . . . . . . . . . . . . . . . . . . . . . . . System Corruption 7 | . . 7 . . . . . . . . . . . . . . . . . . . . . . . . . . . . . . . Parts Lost 45 | . . 6 10 . . . . . . 1 . . . . . . 2 . . . . 1 . 3 1 . . . . . . 16 5 Power 4 | . . 1 1 . . . . . . . . . . . . . . . . . . . . . . . . . . . . 2 . Propulsion 18 | . . 1 6 . . . . . . . . . . . . . . . . . . . . 1 1 . . . . . . 7 2 Utility 14 | . . 1 1 . . . . . . . . . . . . . 2 . . . . 1 . 1 . . . . . . . 6 2 Weapon 9 | . . 3 2 . . . . . . 1 . . . . . . . . . . . . . 1 . . . . . . . 1 1 Highest Loss Streak 16 | . . 4 3 . . . . . . 1 . . . . . . 1 . . . . 1 . 3 4 . . . . . . 16 2 To Critical Strikes . | . . . . . . . . . . . . . . . . . . . . . . . . . . . . . . . . . . Average Backups 10 | 3 7 7 12 10 10 10 13 10 10 9 9 10 10 10 8 9 9 8 8 9 9 8 8 8 8 8 8 9 8 9 8 8 4 Power 1 | . 1 1 1 1 1 1 1 . 1 1 1 1 1 1 . . . . . . 1 1 1 1 1 1 1 1 1 1 1 1 . Propulsion 3 | 2 3 4 5 2 2 2 3 3 3 2 3 3 3 3 3 4 3 4 4 2 2 2 2 2 1 2 1 1 1 1 1 . . Utility 3 | . . . 2 4 5 5 6 4 4 4 4 4 4 4 3 3 3 3 3 4 4 3 2 3 3 3 4 4 3 3 3 3 1 Weapon 2 | . 2 1 2 2 2 2 2 2 2 2 1 2 2 2 2 2 1 1 1 1 2 2 2 2 2 2 2 2 1 2 3 3 3 Tool/Special . | . . . . . . . . . . . . . . . . . . . . . . . . . . . . . . . . . . Unused Backups 29 | . 6 4 4 1 . . . 2 . 1 . . . . . . 2 . . 3 . 1 . . . 1 . . . . 1 2 1 Power 3 | . . 1 1 . . . . . . . . . . . . . . . . . . . . . . . . . . . . 1 . Propulsion 10 | . 4 3 1 . . . . . . 1 . . . . . . . . . 1 . . . . . . . . . . . . . Utility 9 | . . . . 1 . . . 1 . . . . . . . . 1 . . 2 . 1 . . . 1 . . . . 1 1 . Weapon 6 | . 2 . 2 . . . . 1 . . . . . . . . . . . . . . . . . . . . . . . . 1 Tool/Special 1 | . . . . . . . . . . . . . . . . . 1 . . . . . . . . . . . . . . . . Average Slot Usage (%) 91 | . 96 82 92 82 85 97 100 92 93 92 86 86 86 86 89 88 88 94 94 97 100 98 100 99 93 99 100 100 94 97 95 90 15 Engine 5 | . 14 8 10 9 9 9 9 6 6 4 . . . . 4 5 . . . . . . . . . . . . . . . . . Core 3 | . . . . . . . . . . 1 6 6 6 6 5 5 9 11 11 11 11 10 10 10 10 10 10 10 9 9 9 7 . Treads 6 | . 28 26 12 1 . . . . . . . . . . . . . . . . . . . . . . . . . . . . . Wheel 3 | . . . 11 1 . . . . . . . . . . . . . . . . . . . . . . . . . . . . . Flight 20 | . . . 4 30 36 36 36 33 33 33 33 33 33 33 32 29 29 29 29 33 35 31 31 31 30 30 35 35 31 31 31 28 1 Device 9 | . 7 4 3 16 18 18 18 10 6 6 6 6 6 6 10 11 10 11 11 10 11 15 21 20 19 20 20 20 18 14 12 11 . Storage 7 | . 14 14 11 9 9 9 9 6 6 6 6 6 6 6 5 5 5 5 5 5 5 5 5 5 5 5 5 5 4 4 4 4 . Processor 3 | . . . . . . . . 2 6 6 6 6 6 6 5 5 5 11 11 11 11 10 10 10 10 10 10 10 9 9 9 8 6 Hackware 9 | . . . 10 9 9 9 9 12 13 13 13 13 13 13 11 11 11 11 11 11 11 14 10 10 10 10 10 10 12 13 13 11 4 Protection 3 | . 3 . 6 . . . . 5 6 5 6 6 6 6 5 5 4 . . . . . . . . . . . . 2 3 3 . Ballistic Gun 5 | . 28 27 11 3 . . . . . . . . . . . . . . . . . . . . . . . . . . . . . Ballistic Cannon 2 | . . . 7 . . . . . . . . . . . . . . . . . . . . . . . . . . 2 1 3 . Impact Weapon 1 | . . . . . 4 9 5 . . . . . . . . . . . . . . 1 5 5 5 5 5 5 4 4 4 3 2 Slashing Weapon 2 | . . . . . . . 3 6 6 6 6 6 6 6 5 5 5 5 5 5 5 3 . . 1 5 5 5 4 4 3 3 . Special Melee Weapon 1 | . . . . . . 6 9 5 6 5 . . . . . . . . . . . . . . . . . . . . . 2 . Peak Build Rating 163 | 6 7 9 20 34 33 36 44 57 55 61 62 58 58 58 72 72 96 96 96 107 102 123 129 132 130 135 138 138 153 154 158 163 51 Average Rating 56 | 4 6 6 15 30 32 35 41 54 55 57 58 58 58 58 70 72 78 96 96 100 102 116 123 126 124 130 136 138 144 149 147 155 31 On Entrance 76 | . 6 7 8 19 31 33 36 44 55 55 58 58 58 58 58 72 72 96 96 96 102 102 121 122 118 130 135 138 138 145 149 158 32 Naked Turns . | . . . . . . . . . . . . . . . . . . . . . . . . . . . . . . . . . . Heaviest Build 45 | 14 15 15 40 17 19 20 33 25 23 26 25 25 25 25 32 32 36 34 34 34 34 38 44 37 33 35 35 35 44 44 45 45 3 Greatest Support 58 | 40 40 40 48 20 20 20 20 26 26 26 26 26 26 26 33 33 49 49 37 39 38 38 38 47 44 47 44 44 58 46 46 58 10 Greatest Overweight (x) 3 | . . . 3 . . . 1 1 . . . . . . . . . . . . . 1 1 . . . . . . . . 3 . Average Overweight (x) . | . . . 1 . . . . . . . . . . . . . . . . . . . . . . . . . . . . . . Largest Inventory Capacity 15 | 8 8 8 15 15 10 10 15 15 10 10 10 10 10 10 10 10 10 10 10 10 10 10 10 10 10 10 10 10 10 10 10 10 5 Average Capacity 10 | 6 8 8 13 10 10 10 14 10 10 10 10 10 10 10 10 10 10 10 10 10 10 10 10 10 10 10 10 10 10 10 10 9 5 Most Carried 15 | 6 8 8 15 15 10 10 15 14 10 10 10 10 10 10 9 9 10 8 9 10 10 10 10 10 10 10 10 10 10 10 10 10 5 Average Carried 10 | 3 7 7 12 10 10 10 13 10 10 9 9 10 10 10 8 9 9 8 8 9 10 9 9 9 9 9 9 10 9 9 9 9 4 Final Capacity 15 | 8 8 8 15 10 10 10 15 10 10 10 10 10 10 10 10 10 10 10 10 10 10 10 10 10 10 10 10 10 10 10 10 5 5 Final Carried 15 | 6 8 6 15 10 10 10 15 10 10 10 10 10 10 10 9 9 8 8 9 10 10 8 10 9 10 9 10 10 10 10 9 5 5 Class Distribution -------------------- 28% | Hacker-Sprinter 23% | Scavenger-Mutant 22% | Mutant 11% | Hacker-Ninja 7% | Hacker-Scout 3% | Sprinter Dominant Class ---------------- Mutant | -10/Materials Mutant | -10/Mines Scavenger-Mutant | -9/Materials Sprinter | -8/Materials Sprinter | -8/Storage Sprinter | -8/Recycling Mutant | -8/Scraptown Hacker-Sprinter | -6/Factory Hacker-Sprinter | -6/Waste Hacker-Sprinter | -6/Factory Hacker-Sprinter | -6/Lower Caves Hacker-Sprinter | -6/Lower Caves Hacker-Sprinter | -6/Data Miner Hacker-Sprinter | -5/Proximity Caves Hacker-Sprinter | -5/Factory Hacker-Sprinter | -5/Waste Hacker-Sprinter | -5/Factory Hacker-Scout | -5/Upper Caves Hacker-Scout | -5/Upper Caves Hacker-Scout | -5/Warlord Hacker-Scout | -4/Proximity Caves Hacker-Ninja | -4/Factory Hacker-Ninja | -4/Waste Hacker-Ninja | -4/Factory Hacker-Sprinter | -4/Upper Caves Hacker-Sprinter | -4/Upper Caves Hacker-Sprinter | -4/Zhirov Hacker-Sprinter | -3/Proximity Caves Hacker-Sprinter | -3/Research Commander-Sprinter | -3/Armory Hacker-Sprinter | -3/Lab Hacker-Ninja | -2/Research Alien-Mutant | -2/Quarantine Resources | -11 -10 -10 -9 -8 -8 -8 -8 -6 -6 -6 -6 -6 -6 -5 -5 -5 -5 -5 -5 -5 -4 -4 -4 -4 -4 -4 -4 -3 -3 -3 -3 -2 -2 ----------- Run | Yrd Mat Min Mat Mat Sto Rec Scr Fac Was Fac Low Low Dat Pro Fac Was Fac Upp Upp War Pro Fac Was Fac Upp Upp Zhi Pro Res Arm Lab Res Qua Matter Collected 3356 | 171 167 159 1443 . 144 30 40 90 . 80 7 8 . . 35 . 68 34 50 . . 80 320 43 3 70 123 . 40 . 54 45 52 Remotely 238 | . 167 71 . . . . . . . . . . . . . . . . . . . . . . . . . . . . . . . Salvage Created 3435 | . 288 68 1837 . . . . 195 . 81 . . . . 35 . 214 . . . . 80 . 104 . . 355 . . . 54 72 52 Parts 177 | . 19 9 121 . . . . 6 . 1 . . . . 4 . 7 . . . . . . 2 . . . . . . 4 4 . Haulers Intercepted 5 | . . . 3 . . . . . . 1 . . . . . . 1 . . . . . . . . . . . . . . . . Recyclers Shooed . | . . . . . . . . . . . . . . . . . . . . . . . . . . . . . . . . . . Parts Field Recycled . | . . . . . . . . . . . . . . . . . . . . . . . . . . . . . . . . . . Retrieved Matter . | . . . . . . . . . . . . . . . . . . . . . . . . . . . . . . . . . . Parts Self-Destructed 1 | . . . . . . . . . . . 1 . . . . . . . . . . . . . . . . . . . . . . Prevented . | . . . . . . . . . . . . . . . . . . . . . . . . . . . . . . . . . . Kills | -11 -10 -10 -9 -8 -8 -8 -8 -6 -6 -6 -6 -6 -6 -5 -5 -5 -5 -5 -5 -5 -4 -4 -4 -4 -4 -4 -4 -3 -3 -3 -3 -2 -2 ------- Run | Yrd Mat Min Mat Mat Sto Rec Scr Fac Was Fac Low Low Dat Pro Fac Was Fac Upp Upp War Pro Fac Was Fac Upp Upp Zhi Pro Res Arm Lab Res Qua Combat Hostiles Destroyed 49 | . 7 5 35 . . . . . . . . . . . . . 1 . . . . . . . . . . . . . 1 . . Guns 25 | . 7 5 13 . . . . . . . . . . . . . . . . . . . . . . . . . . . . . . Cannons 22 | . . . 22 . . . . . . . . . . . . . . . . . . . . . . . . . . . . . . AOE 1 | . . . . . . . . . . . . . . . . . 1 . . . . . . . . . . . . . . . . Classes Destroyed 11 | . 3 1 6 . . . . . . . . . . . . . . . . . . 1 . . . . . . . . . . . Worker 7 | . . . 5 . . . . . . . . . . . . . . . . . . . . 1 . . . . . . . 1 . Builder 3 | . . . . . . . . . . . . . . . . . . . . . . 1 . . . . . . . . . . 2 Tunneler 2 | . . . 1 . . . . . . . . . . . . . . . . . . 1 . . . . . . . . . . . Hauler 5 | . . . 3 . . . . . . 1 . . . . . . 1 . . . . . . . . . . . . . . . . Recycler 6 | . . . 5 . . . . 1 . . . . . . . . . . . . . . . . . . . . . . . . . Operator 3 | . . . 2 . . . . . . . . . . . . . . . . . . . . . . . . . . . . 1 . Watcher 17 | . 2 . 5 . . . . 3 . . . . . . 1 . 1 . . . . 1 . 3 . . . . . . . 1 . Swarmer 17 | . 3 3 11 . . . . . . . . . . . . . . . . . . . . . . . . . . . . . . Grunt 21 | . 4 . 16 . . . . . . . . . . . . . 1 . . . . . . . . . . . . . . . . Sentry 8 | . . . 8 . . . . . . . . . . . . . . . . . . . . . . . . . . . . . . Demolisher 2 | . . 2 . . . . . . . . . . . . . . . . . . . . . . . . . . . . . . . Best Kill Streak 5 | . 5 3 4 . . . . 2 . 1 . . . . 1 . 1 . . . . 2 . 1 . . . . . . 1 1 2 Combat Bots Only 5 | . 5 3 4 . . . . . . . . . . . . . 1 . . . . . . . . . . . . . 1 . . Max Kills in Single Turn 2 | . 2 1 2 . . . . 1 . 1 . . . . 1 . 1 . . . . 1 . 1 . . . . . . 1 1 1 Gunslinging 1 | . 1 . . . . . . . . . . . . . . . . . . . . . . . . . . . . . . . . Exploded 1 | . . . . . . . . . . . . . . . . . 1 . . . . . . . . . . . . . . . . Melee . | . . . . . . . . . . . . . . . . . . . . . . . . . . . . . . . . . . Uniques/NPCs Destroyed 1 | . . . . . . . . . . . . . . . . . . . . . . . . . . . . . . . 1 . . A5 (-3/Lab) Combat | -11 -10 -10 -9 -8 -8 -8 -8 -6 -6 -6 -6 -6 -6 -5 -5 -5 -5 -5 -5 -5 -4 -4 -4 -4 -4 -4 -4 -3 -3 -3 -3 -2 -2 -------- Run | Yrd Mat Min Mat Mat Sto Rec Scr Fac Was Fac Low Low Dat Pro Fac Was Fac Upp Upp War Pro Fac Was Fac Upp Upp Zhi Pro Res Arm Lab Res Qua Hostile Shots Fired 670 | . 26 31 153 1 15 . . 52 . 47 9 . . 2 . . 39 6 . . . 8 . 19 12 18 . . 17 . 12 92 111 Missed 290 | . 5 4 34 1 11 . . 38 . 29 7 . . 2 . . 18 2 . . . 4 . 16 7 15 . . 15 . 8 30 44 Hits 380 | . 21 27 119 . 4 . . 14 . 18 2 . . . . . 21 4 . . . 4 . 3 5 3 . . 2 . 4 62 67 Projectile 380 | . 21 27 119 . 4 . . 14 . 18 2 . . . . . 21 4 . . . 4 . 3 5 3 . . 2 . 4 62 67 AOE 11 | . . 11 . . . . . . . . . . . . . . . . . . . . . . . . . . . . . . . Critical Strikes 3 | . . . 1 . . . . . . . . . . . . . . 1 . . . 1 . . . . . . . . . . . Damage Taken 6263 | . 212 614 1387 . 60 . . 106 . 140 33 . . . . . 413 72 . . . 136 . 236 100 42 . . 40 . 101 1232 1339 Core 2093 | . 23 156 133 . 15 . . 17 . 64 19 . . . . . 82 . . . . . . 33 17 25 . . . . 50 580 879 Absorbed by Shields 14 | . . . . . . . . . . 14 . . . . . . . . . . . . . . . . . . . . . . . Redirected to Shielding 194 | . 1 . . . . . . 20 . 5 . . . . . . 95 . . . . . . . . . . . . . 17 56 . Regen/Repaired (Parts) 272 | . . . . . . . . 6 . 58 . . . . . . 66 . . . . . 85 57 . . . . . . . . . Core Remaining (%) 82 | 100 . 28 66 . . . 97 . . . . . . 88 . . . . . . 91 . . . . . . 93 . . 100 . . Volleys Fired 207 | . 17 16 155 . . . . 1 . 1 2 . . . . . 2 . . . . 3 . 4 . . . . 1 . . 5 . Largest 2 | . 2 2 2 . . . . 1 . 1 1 . . . . . 1 . . . . 1 . 1 . . . . 1 . . 1 . Hottest 90 | . 40 40 88 . . . . 90 . 90 90 . . . . . 90 . . . . 45 . 45 . . . . 45 . . 54 . Shots Fired 378 | . 34 27 298 . . . . 1 . 1 2 . . . . . 2 . . . . 3 . 4 . . . . 1 . . 5 . Gun 263 | . 34 27 198 . . . . . . . . . . . . . . . . . . 2 . 1 . . . . 1 . . . . Cannon 109 | . . . 99 . . . . 1 . 1 2 . . . . . 1 . . . . . . . . . . . . . . 5 . Launcher 6 | . . . 1 . . . . . . . . . . . . . 1 . . . . 1 . 3 . . . . . . . . . Special . | . . . . . . . . . . . . . . . . . . . . . . . . . . . . . . . . . . Kinetic 336 | . 34 27 270 . . . . . . . . . . . . . . . . . . . . . . . . . . . . 5 . Thermal 32 | . . . 27 . . . . 1 . 1 2 . . . . . 1 . . . . . . . . . . . . . . . . Explosive 6 | . . . 1 . . . . . . . . . . . . . 1 . . . . 1 . 3 . . . . . . . . . Electromagnetic . | . . . . . . . . . . . . . . . . . . . . . . . . . . . . . . . . . . Entropic 4 | . . . . . . . . . . . . . . . . . . . . . . 2 . 1 . . . . 1 . . . . Robot Hit Streak 21 | . 9 4 21 . . . . . . . . . . . . . . . . . . 3 . . . . . . . . . . . Robot Miss Streak 6 | . 2 3 6 . . . . . . . . . . . . . . . . . . . . . . . . . . . . . . Penetration Max . | . . . . . . . . . . . . . . . . . . . . . . . . . . . . . . . . . . Secondary Targets 4 | . 2 1 1 . . . . . . . . . . . . . . . . . . . . . . . . . . . . . . Max Gunslinging Chain 1 | . 1 1 1 . . . . . . . . . . . . . . . . . . . . . . . . . . . . . . Shots Hit Robots 272 | . 22 15 186 . . . . 8 . 2 . . . . 1 . 7 . . . . 6 . 4 . . 7 . . . 7 5 2 Core Hits 118 | . 13 7 74 . . . . 3 . 1 . . . . 1 . 15 . . . . . . 1 . . 1 . . . . 2 . Critical Kills . | . . . . . . . . . . . . . . . . . . . . . . . . . . . . . . . . . . Critical Parts Destroyed 7 | . . . . . . . . . . . . . . . . . . . . . . 1 . . . . 3 . . . 1 . 2 Critical Strikes 9 | . . . 1 . . . . . . . . . . . . . . . . . . 1 . . . . 3 . . . 2 . 2 Blast 1 | . . . 1 . . . . . . . . . . . . . . . . . . . . . . . . . . . . . . Smash 8 | . . . . . . . . . . . . . . . . . . . . . . 1 . . . . 3 . . . 2 . 2 Melee Attacks 223 | . . . . . 1 . . 35 . 21 2 . . 1 4 . 36 . . . . 25 . 17 . 2 9 . 12 3 19 32 4 Impact 73 | . . . . . 1 . . . . . . . . . . . . . . . . 10 . 17 . . 6 . 5 3 14 13 4 Slashing 146 | . . . . . . . . 33 . 20 2 . . 1 4 . 36 . . . . 15 . . . 2 3 . 7 . 5 18 . Piercing . | . . . . . . . . . . . . . . . . . . . . . . . . . . . . . . . . . . Sneak Attacks 15 | . . . . . . . . 3 . 2 . . . . . . 2 . . . . 2 . 1 . . . . . . 1 3 1 Combat Hostiles 1 | . . . . . . . . . . . . . . . . . . . . . . . . . . . . . . . 1 . . Follow-up Attacks 6 | . . . . . . . . . . . . . . . . . . . . . . . . . . . 1 . . . 3 2 . Damage Inflicted 8530 | . 285 184 3396 . . . . 358 . 76 . . . . 62 . 619 . . . . 641 . 429 . . 977 . . . 922 401 180 Guns 2343 | . 277 184 1882 . . . . . . . . . . . . . . . . . . . . . . . . . . . . . . Cannons 1512 | . . . 1512 . . . . . . . . . . . . . . . . . . . . . . . . . . . . . . Explosions 232 | . . . . . . . . . . . . . . . . . 169 . . . . 41 . 22 . . . . . . . . . Melee 4433 | . . . . . . . . 358 . 76 . . . . 62 . 450 . . . . 600 . 407 . . 977 . . . 922 401 180 Ramming 10 | . 8 . 2 . . . . . . . . . . . . . . . . . . . . . . . . . . . . . . Kinetic 3601 | . 277 184 3140 . . . . . . . . . . . . . . . . . . . . . . . . . . . . . . Thermal 254 | . . . 254 . . . . . . . . . . . . . . . . . . . . . . . . . . . . . . Explosive 94 | . . . . . . . . . . . . . . . . . 31 . . . . 41 . 22 . . . . . . . . . Electromagnetic 138 | . . . . . . . . . . . . . . . . . 138 . . . . . . . . . . . . . . . . Impact 2929 | . . . . . . . . . . . . . . . . . . . . . . 526 . 407 . . 883 . . . 871 62 180 Slashing 1504 | . . . . . . . . 358 . 76 . . . . 62 . 450 . . . . 74 . . . . 94 . . . 51 339 . Piercing . | . . . . . . . . . . . . . . . . . . . . . . . . . . . . . . . . . . Highest Corruption 7 | . . 7 . 1 1 1 . . . . . . . . . 6 6 2 2 2 . 4 . . . . . . . . 1 1 1 Average Corruption 1 | . . 7 . 1 1 1 . . . . . . . . . 6 1 2 2 2 . 2 . . . . . . . . 1 1 1 Corruption Purged 9 | . . . . . . . . . . . . . . . . . 5 . . . . 4 . . . . . . . . . . . Corruption Blocked . | . . . . . . . . . . . . . . . . . . . . . . . . . . . . . . . . . . Effects 15 | . . . . . 1 . . . . . . . . . . 1 6 3 2 . . 2 . . . . . . . . . . . Message Errors 3 | . . . . . . . . . . . . . . . . . 1 1 . . . 1 . . . . . . . . . . . Matter Fused 7 | . . . . . 1 . . . . . . . . . . 1 2 1 1 . . 1 . . . . . . . . . . . Heat Flow Errors 2 | . . . . . . . . . . . . . . . . . 1 1 . . . . . . . . . . . . . . . Energy Discharges 2 | . . . . . . . . . . . . . . . . . 2 . . . . . . . . . . . . . . . . Data Loss (minor) 1 | . . . . . . . . . . . . . . . . . . . 1 . . . . . . . . . . . . . . Overload Shots . | . . . . . . . . . . . . . . . . . . . . . . . . . . . . . . . . . . Overflow Damage 2002 | . . . 22 . . . . 79 . . . . . . . . 45 . . . . 429 . 279 . . 587 . . . 186 195 180 Projectiles 22 | . . . 22 . . . . . . . . . . . . . . . . . . . . . . . . . . . . . . Explosions 12 | . . . . . . . . . . . . . . . . . . . . . . 8 . 4 . . . . . . . . . Melee 1968 | . . . . . . . . 79 . . . . . . . . 45 . . . . 421 . 275 . . 587 . . . 186 195 180 Knockbacks 15 | . . . 9 . . . . . . . . . . . . . . . . . . 2 . 2 . . . . . . 1 . 1 Impact 6 | . . . . . . . . . . . . . . . . . . . . . . 2 . 2 . . . . . . 1 . 1 Kinetic 8 | . . . 8 . . . . . . . . . . . . . . . . . . . . . . . . . . . . . . Secondary 1 | . . . 1 . . . . . . . . . . . . . . . . . . . . . . . . . . . . . . Self-Inflicted Damage 114 | . . . . . . . . . . . . . . . . . . . . . . 56 . 58 . . . . . . . . . Shots 3 | . . . . . . . . . . . . . . . . . . . . . . 1 . 2 . . . . . . . . . Rammed 2 | . 1 . 1 . . . . . . . . . . . . . . . . . . . . . . . . . . . . . . Targets Rammed 2 | . 1 . 1 . . . . . . . . . . . . . . . . . . . . . . . . . . . . . . Kicked . | . . . . . . . . . . . . . . . . . . . . . . . . . . . . . . . . . . Crushed . | . . . . . . . . . . . . . . . . . . . . . . . . . . . . . . . . . . Highest Temperature 314 | . 2 . 126 . 4 . . 40 . 40 88 2 2 2 62 10 314 115 . . . . . 192 262 142 . . 278 104 67 313 . Average Temperature 35 | . 2 . 25 . 3 . . 10 . 7 24 2 2 2 19 6 32 61 . . . . . 75 128 81 . . 97 53 28 145 . Received Heat Transfer 1019 | . 69 . 585 . 27 . . 27 . 38 9 . . . . . 153 27 . . . 9 . . 9 . . . 21 . . . 45 Effects 2 | . . . . . . . . . . . . . . . . . . . . . . . . . . . . . 2 . . . . Interference 2 | . . . . . . . . . . . . . . . . . . . . . . . . . . . . . 2 . . . . Siege Activations . | . . . . . . . . . . . . . . . . . . . . . . . . . . . . . . . . . . Martial Activations . | . . . . . . . . . . . . . . . . . . . . . . . . . . . . . . . . . . Shielding Activations . | . . . . . . . . . . . . . . . . . . . . . . . . . . . . . . . . . . Robots Disrupted . | . . . . . . . . . . . . . . . . . . . . . . . . . . . . . . . . . . Combat Hostiles . | . . . . . . . . . . . . . . . . . . . . . . . . . . . . . . . . . . Robots Corrupted 7 | . . . . . . . . . . . . . . . . . . . . . . 1 . 3 . . 1 . . . 1 . 1 Combat Hostiles 2 | . . . . . . . . . . . . . . . . . . . . . . . . . . . 1 . . . 1 . . Parts Fried 16 | . . . . . . . . . . . . . . . . . . . . . . 5 . 4 . . . . . . 2 . 5 Impact Corruptions 37 | . . . . . . . . . . . . . . . . . . . . . . 8 . 6 . . 13 . . . 5 . 5 Robots Melted . | . . . . . . . . . . . . . . . . . . . . . . . . . . . . . . . . . . Combat Hostiles . | . . . . . . . . . . . . . . . . . . . . . . . . . . . . . . . . . . Parts Melted . | . . . . . . . . . . . . . . . . . . . . . . . . . . . . . . . . . . Heat Transferred 629 | . . . 629 . . . . . . . . . . . . . . . . . . . . . . . . . . . . . . Parts Sabotaged . | . . . . . . . . . . . . . . . . . . . . . . . . . . . . . . . . . . Parts Stolen . | . . . . . . . . . . . . . . . . . . . . . . . . . . . . . . . . . . Parts Stripped . | . . . . . . . . . . . . . . . . . . . . . . . . . . . . . . . . . . Power Chain Reactions 1 | . . . . . . . . . . . . . . . . . 1 . . . . . . . . . . . . . . . . Alert | -11 -10 -10 -9 -8 -8 -8 -8 -6 -6 -6 -6 -6 -6 -5 -5 -5 -5 -5 -5 -5 -4 -4 -4 -4 -4 -4 -4 -3 -3 -3 -3 -2 -2 ------- Run | Yrd Mat Min Mat Mat Sto Rec Scr Fac Was Fac Low Low Dat Pro Fac Was Fac Upp Upp War Pro Fac Was Fac Upp Upp Zhi Pro Res Arm Lab Res Qua Maximum Alert Level 3 | . . . 2 . . . . . . . . . . . . . 2 . . . . . . 3 . . . . 1 . . . . Low Security (%) 73 | 100 100 100 39 100 100 100 . 100 100 100 . . . . 100 100 93 . . . . 100 100 5 . . . . 97 100 . 100 100 Level 1 14 | . . . 37 . . . . . . . . . . . . . 2 . . . . . . 24 . . . . 2 . . . . Level 2 11 | . . . 23 . . . . . . . . . . . . . 3 . . . . . . 60 . . . . . . . . . Level 3 . | . . . . . . . . . . . . . . . . . . . . . . . . 8 . . . . . . . . . Level 4 . | . . . . . . . . . . . . . . . . . . . . . . . . . . . . . . . . . . Level 5 . | . . . . . . . . . . . . . . . . . . . . . . . . . . . . . . . . . . High Security . | . . . . . . . . . . . . . . . . . . . . . . . . . . . . . . . . . . Max Security . | . . . . . . . . . . . . . . . . . . . . . . . . . . . . . . . . . . Peak Influence 1008 | . 101 67 501 81 75 100 . 199 52 115 . . . . 81 39 545 . . . . 61 17 1008 . . . . 242 128 . 53 139 Initial 126 | . . 2 19 81 29 25 . . 52 36 . . . . 75 24 20 . . . . . 17 . . . . . . 126 . . . Average 139 | . 16 4 252 73 26 32 . 88 52 29 . . . . 73 28 63 . . . . 20 5 511 . . . . 119 119 . 8 83 Influence Increases 6456 | . 198 135 1193 10 84 169 . 390 . 245 135 60 . 150 26 15 819 60 . . . 207 26 1448 120 180 5 . 332 32 . 158 259 Destroy 0b10 Robot/C 1320 | . 140 100 700 . . . . . . . . . . . . . 20 . . . . . . 360 . . . . . . . . . Destroy 0b10 Robot/NC 235 | . 10 . 105 . . . . 20 . 5 . . . . 5 . 10 . . . . 15 . 35 . . 5 . . . . 15 10 Destroy Leader 346 | . 34 20 206 . . . . 6 . 2 . . . . 2 . 4 . . . . 2 . 68 . . . . . . . 2 . Allied During Kill 170 | . . . . . . . . . . . . . . . . . . . . . . . . 170 . . . . . . . . . Successful Hack 321 | . 13 . 11 10 9 19 . 25 . 69 . . . . . . 41 . . . . 44 . 12 . . . . 29 . . 18 21 Select Force Hacks 230 | . . . . . . 150 . . . . . . . . . . . . . . . 30 . 50 . . . . . . . . . Disable Machine 570 | . . 15 45 . 15 . . 30 . . . . . . . . 195 . . . . 30 . 165 . . . . 15 30 . 15 15 Destroy Structure 474 | . 1 . 36 . . . . 24 . 19 . . . . 4 . 54 . . . . 56 26 168 . . . . 18 2 . 63 3 Partial Spotted 450 | . . . . . . . . 30 . 45 . . . . 15 15 30 . . . . 15 . 105 . . . . 165 . . 15 15 Lose Combat Pursuer 2340 | . . . 90 . 60 . . 255 . 105 135 60 . 150 . . 465 60 . . . 15 . 315 120 180 . . 105 . . 30 195 Influence Decreases 6337 | . 191 91 1050 133 90 214 20 240 98 193 110 75 114 30 75 57 303 243 100 262 . 156 77 458 417 173 705 . 90 146 128 158 140 Entered New Map 2659 | . . 5 32 113 42 40 20 . 98 16 40 25 114 . 45 47 9 203 70 262 . . 34 . 367 133 700 . . 116 128 . . Time Decay 2525 | . 100 56 618 20 30 39 . 240 . 167 70 50 . 30 30 10 244 40 30 . . 117 36 198 40 40 5 . 90 30 . 105 90 Lost Part 313 | . . 30 100 . . . . . . 10 . . . . . . 20 . . . . 10 . 30 10 . . . . . . 53 50 Lost Ally 271 | . . . . . . . . . . . . . . . . . 30 . . . . 4 7 230 . . . . . . . . . Purge Threat 569 | . 91 . 300 . 18 135 . . . . . . . . . . . . . . . 25 . . . . . . . . . . . Squads Dispatched 65 | . 1 . 6 1 . . . 9 . 7 . . . . 1 . 11 . . . . 4 . 10 . . . . 3 . . 5 7 Investigation 37 | . 1 . 3 1 . . . 7 . 5 . . . . . . 7 . . . . 3 . 7 . . . . 2 . . 1 . Extermination 8 | . . . . . . . . 2 . 1 . . . . . . 1 . . . . 1 . 2 . . . . . . . 1 . Reinforcement 13 | . . . 2 . . . . . . 1 . . . . 1 . 3 . . . . . . 1 . . . . 1 . . . 4 Assault 1 | . . . 1 . . . . . . . . . . . . . . . . . . . . . . . . . . . . . . Garrison . | . . . . . . . . . . . . . . . . . . . . . . . . . . . . . . . . . . Intercept 6 | . . . . . . . . . . . . . . . . . . . . . . . . . . . . . . . . 3 3 Searches Triggered . | . . . . . . . . . . . . . . . . . . . . . . . . . . . . . . . . . . Data Miner Redirects 1 | . . . . . . . . . . . . . . . . . . . . . . . . 1 . . . . . . . . . Construction Impeded 1 | . . . . . . . . . . . . . . . . . . . . . . . . . . . . . . . . . 1 Haulers Reinforced . | . . . . . . . . . . . . . . . . . . . . . . . . . . . . . . . . . . Active Scanning Responses . | . . . . . . . . . . . . . . . . . . . . . . . . . . . . . . . . . . Cargo Convoy Interrupts . | . . . . . . . . . . . . . . . . . . . . . . . . . . . . . . . . . . Stealth | -11 -10 -10 -9 -8 -8 -8 -8 -6 -6 -6 -6 -6 -6 -5 -5 -5 -5 -5 -5 -5 -4 -4 -4 -4 -4 -4 -4 -3 -3 -3 -3 -2 -2 --------- Run | Yrd Mat Min Mat Mat Sto Rec Scr Fac Was Fac Low Low Dat Pro Fac Was Fac Upp Upp War Pro Fac Was Fac Upp Upp Zhi Pro Res Arm Lab Res Qua Distress Signals 13 | . . . 2 . 1 . . 1 . . . . . 1 . . 1 . . . . 1 . 1 . . . . 1 . . 2 2 Communications Jammed . | . . . . . . . . . . . . . . . . . . . . . . . . . . . . . . . . . . Distress Signals . | . . . . . . . . . . . . . . . . . . . . . . . . . . . . . . . . . . Times Spotted 346 | . 9 13 54 3 13 . . 20 6 15 15 2 . 10 2 5 41 5 . . . 12 1 37 8 12 . . 19 . 1 16 27 Peak Tracking Total 17 | . 4 16 5 2 12 . . 7 6 11 6 4 . 6 2 5 17 4 . . . 6 1 14 8 6 . . 14 . 1 12 12 Tactical Retreats 46 | . . . 5 . 1 . . 6 . 3 4 1 . 1 . . 7 2 . . . 1 . 3 2 2 . . 3 . . 1 4 Traps | -11 -10 -10 -9 -8 -8 -8 -8 -6 -6 -6 -6 -6 -6 -5 -5 -5 -5 -5 -5 -5 -4 -4 -4 -4 -4 -4 -4 -3 -3 -3 -3 -2 -2 ------- Run | Yrd Mat Min Mat Mat Sto Rec Scr Fac Was Fac Low Low Dat Pro Fac Was Fac Upp Upp War Pro Fac Was Fac Upp Upp Zhi Pro Res Arm Lab Res Qua Traps Triggered 15 | . 1 . 3 . . . . 1 . 1 . . . . 1 . 3 . . . . 3 . 1 . . . . . . . . 1 Indirectly . | . . . . . . . . . . . . . . . . . . . . . . . . . . . . . . . . . . Trap Hack Attempts . | . . . . . . . . . . . . . . . . . . . . . . . . . . . . . . . . . . Triggered . | . . . . . . . . . . . . . . . . . . . . . . . . . . . . . . . . . . Disarmed . | . . . . . . . . . . . . . . . . . . . . . . . . . . . . . . . . . . Reprogrammed 4 | . . . . . . . . . . . . . . . . . . . . . . . . . . . . . 4 . . . . Reused . | . . . . . . . . . . . . . . . . . . . . . . . . . . . . . . . . . . Traps Extracted . | . . . . . . . . . . . . . . . . . . . . . . . . . . . . . . . . . . Installed 1 | . . . . . . . . . . . . . . . . . . 1 . . . . . . . . . . . . . . . Triggered . | . . . . . . . . . . . . . . . . . . . . . . . . . . . . . . . . . . Machines | -11 -10 -10 -9 -8 -8 -8 -8 -6 -6 -6 -6 -6 -6 -5 -5 -5 -5 -5 -5 -5 -4 -4 -4 -4 -4 -4 -4 -3 -3 -3 -3 -2 -2 ---------- Run | Yrd Mat Min Mat Mat Sto Rec Scr Fac Was Fac Low Low Dat Pro Fac Was Fac Upp Upp War Pro Fac Was Fac Upp Upp Zhi Pro Res Arm Lab Res Qua Machines Disabled 40 | . . 1 3 . 1 . . 2 . . . . . . . . 13 . . . . 2 . 11 . . . . 1 2 2 1 1 Max in Single Turn 10 | . . 1 1 . 1 . . 1 . . . . . . . . 10 . . . . 1 . 2 . . . . 1 1 1 1 1 Garrison Access 5 | . . . . . . . . 1 . 1 . . . . . . 2 . . . . 1 . . . . . . . . . . . Machines Repaired . | . . . . . . . . . . . . . . . . . . . . . . . . . . . . . . . . . . Machines Dismantled . | . . . . . . . . . . . . . . . . . . . . . . . . . . . . . . . . . . Machines Sabotaged . | . . . . . . . . . . . . . . . . . . . . . . . . . . . . . . . . . . Overloaded Fab Kills . | . . . . . . . . . . . . . . . . . . . . . . . . . . . . . . . . . . Hacking | -11 -10 -10 -9 -8 -8 -8 -8 -6 -6 -6 -6 -6 -6 -5 -5 -5 -5 -5 -5 -5 -4 -4 -4 -4 -4 -4 -4 -3 -3 -3 -3 -2 -2 --------- Run | Yrd Mat Min Mat Mat Sto Rec Scr Fac Was Fac Low Low Dat Pro Fac Was Fac Upp Upp War Pro Fac Was Fac Upp Upp Zhi Pro Res Arm Lab Res Qua Machines Accessed 130 | . 2 1 9 3 4 10 5 17 . 17 . . 4 . . . 19 1 . 2 . 7 . 11 1 . 4 . 7 . . 5 1 Terminals 58 | . 2 . 9 3 4 5 . 5 . 6 . . . . . . 9 1 . . . 3 . 1 . . . . 4 . . 5 1 Fabricators 11 | . . . . . . . . 3 . 3 . . . . . . 1 . . . . . . 3 . . . . 1 . . . . Repair Stations 7 | . . . . . . . . 1 . 2 . . . . . . 2 . . . . . . 2 . . . . . . . . . Recycling Units 30 | . . . . . . 5 . 6 . 5 . . . . . . 5 . . . . 2 . 5 . . . . 2 . . . . Scanalyzers 1 | . . . . . . . . . . . . . . . . . . . . . . 1 . . . . . . . . . . . Garrison Access 6 | . . . . . . . . 2 . 1 . . . . . . 2 . . . . 1 . . . . . . . . . . . Total Hacks 329 | . 6 1 30 9 13 34 11 34 . 34 . . 25 . . . 44 1 . 2 . 20 . 18 1 . 17 . 17 . . 11 1 Successful 213 | . 4 1 4 5 9 23 11 22 . 18 . . 25 . . . 29 1 . 2 . 13 . 14 1 . 17 . 10 . . 3 1 Failed 115 | . 2 . 26 4 3 11 . 12 . 16 . . . . . . 15 . . . . 7 . 4 . . . . 7 . . 8 . Catastrophic 13 | . . . 4 . . 1 . . . 3 . . . . . . 1 . . . . . . . . . . . 1 . . 3 . Database Lockouts 1 | . . . . . 1 . . . . . . . . . . . . . . . . . . . . . . . . . . . . Manual 167 | . 2 . 26 5 6 15 . 22 . 17 . . . . . . 27 . . 1 . 12 . 15 . . . . 11 . 1 6 1 Terminals 180 | . 6 . 30 9 13 22 . 14 . 16 . . . . . . 26 1 . . . 14 . 4 . . . . 13 . . 11 1 Fabricators 15 | . . . . . . . . 4 . 5 . . . . . . 1 . . . . . . 3 . . . . 2 . . . . Repair Stations 18 | . . . . . . . . 2 . 5 . . . . . . 7 . . . . . . 4 . . . . . . . . . Recycling Units 48 | . . . . . . 12 . 10 . 6 . . . . . . 8 . . . . 3 . 7 . . . . 2 . . . . Scanalyzers 2 | . . . . . . . . . . . . . . . . . . . . . . 2 . . . . . . . . . . . Garrison Access 9 | . . . . . . . . 4 . 2 . . . . . . 2 . . . . 1 . . . . . . . . . . . Terminal Hacks 120 | . 3 1 3 3 7 10 11 8 . 5 . . 25 . . . 7 1 . 2 . 6 . 2 1 . 17 . 5 . . 3 . Record 23 | . . . . . . . 5 1 . . . . 11 . . . . 1 . . . . . . . . 5 . . . . . . Part Schematic 14 | . . . . . . 1 . . . . . . 8 . . . 1 . . . . . . . . . 4 . . . . . . Robot Schematic 3 | . . . . . . . . . . . . . 3 . . . . . . . . . . . . . . . . . . . . Robot Analysis 10 | . . . . . . 1 4 . . 1 . . . . . . . . . . . . . . . . 4 . . . . . . Prototype ID Bank 16 | . . . . . 3 5 . . . . . . 3 . . . 1 . . . . . . . . . 4 . . . . . . Open Door 6 | . . 1 . . . . 1 . . . . . . . . . . . . 2 . . . . 1 . . . . . . 1 . Level Access Points 1 | . . . . . . . . . . 1 . . . . . . . . . . . . . . . . . . . . . . . Branch Access Points 10 | . 1 . 1 1 1 . . 1 . 1 . . . . . . . . . . . 1 . 1 . . . . 1 . . 1 . Emergency Access Points 2 | . . . . . . . . 1 . . . . . . . . . . . . . . . 1 . . . . . . . . . Machine Index 3 | . . . . . . . . . . 1 . . . . . . . . . . . 1 . . . . . . 1 . . . . Terminal Index 3 | . . . . . . . . 1 . . . . . . . . 1 . . . . . . . . . . . . . . 1 . Alert Level 6 | . 1 . . 2 1 . . 1 . . . . . . . . . . . . . 1 . . . . . . . . . . . Unreport Threat 9 | . 1 . 2 . 1 3 . . . . . . . . . . . . . . . 2 . . . . . . . . . . . Locate Traps 6 | . . . . . 1 . . 1 . . . . . . . . 2 . . . . . . . . . . . 2 . . . . Reprogram Traps 1 | . . . . . . . . . . . . . . . . . . . . . . . . . . . . . 1 . . . . Recall Investigation 1 | . . . . . . . . . . . . . . . . . 1 . . . . . . . . . . . . . . . . Registered Components 3 | . . . . . . . . 1 . 1 . . . . . . . . . . . 1 . . . . . . . . . . . Zone Layout 2 | . . . . . . . . 1 . . . . . . . . 1 . . . . . . . . . . . . . . . . Proto ID Catalog 1 | . . . . . . . 1 . . . . . . . . . . . . . . . . . . . . . . . . . . Fabricator Hacks . | . . . . . . . . . . . . . . . . . . . . . . . . . . . . . . . . . . Repair Station Hacks 11 | . . . . . . . . . . 4 . . . . . . 5 . . . . . . 2 . . . . . . . . . Scan Component 6 | . . . . . . . . . . 2 . . . . . . 3 . . . . . . 1 . . . . . . . . . Repair 5 | . . . . . . . . . . 2 . . . . . . 2 . . . . . . 1 . . . . . . . . . Recycling Unit Hacks 7 | . . . . . . 6 . . . . . . . . . . 1 . . . . . . . . . . . . . . . . Retrieve Components 7 | . . . . . . 6 . . . . . . . . . . 1 . . . . . . . . . . . . . . . . Scanalyzer . | . . . . . . . . . . . . . . . . . . . . . . . . . . . . . . . . . . Garrison Access Hacks 5 | . . . . . . . . 1 . 1 . . . . . . 2 . . . . 1 . . . . . . . . . . . Seal Access 5 | . . . . . . . . 1 . 1 . . . . . . 2 . . . . 1 . . . . . . . . . . . Unauthorized Hacks 70 | . 1 . 1 2 2 7 . 13 . 8 . . . . . . 14 . . . . 6 . 10 . . . . 5 . . . 1 Terminals 29 | . 1 . 1 2 2 2 . 3 . 2 . . . . . . 8 . . . . 3 . 1 . . . . 3 . . . 1 Assimilate 8 | . . . . 1 2 . . . . . . . . . . . 4 . . . . 1 . . . . . . . . . . . Botnet 17 | . 1 . 1 1 . 2 . 3 . 2 . . . . . . 3 . . . . 2 . . . . . . 2 . . . . Disrupt 4 | . . . . . . . . . . . . . . . . . 1 . . . . . . 1 . . . . 1 . . . 1 Fabricators 8 | . . . . . . . . 3 . 1 . . . . . . 1 . . . . . . 3 . . . . . . . . . Liberate 6 | . . . . . . . . 3 . 1 . . . . . . . . . . . . . 2 . . . . . . . . . Overload 1 | . . . . . . . . . . . . . . . . . . . . . . . . 1 . . . . . . . . . Recompile 1 | . . . . . . . . . . . . . . . . . 1 . . . . . . . . . . . . . . . . Repair Stations 2 | . . . . . . . . 1 . . . . . . . . . . . . . . . 1 . . . . . . . . . Patch 2 | . . . . . . . . 1 . . . . . . . . . . . . . . . 1 . . . . . . . . . Recycling Units 30 | . . . . . . 5 . 6 . 5 . . . . . . 5 . . . . 2 . 5 . . . . 2 . . . . Tunnel 5 | . . . . . . 5 . . . . . . . . . . . . . . . . . . . . . . . . . . . Fedlink 25 | . . . . . . . . 6 . 5 . . . . . . 5 . . . . 2 . 5 . . . . 2 . . . . Scanalyzers 1 | . . . . . . . . . . . . . . . . . . . . . . 1 . . . . . . . . . . . Extract 1 | . . . . . . . . . . . . . . . . . . . . . . 1 . . . . . . . . . . . Garrison Access . | . . . . . . . . . . . . . . . . . . . . . . . . . . . . . . . . . . Data Cores Recovered 1 | . . . . . . . . . . . . . . . . . . . . . . . . . . . . . . . . 1 . Used 1 | . . . . . . . . . . . . . . . . . . . . . . . . . . . . . . . . 1 . Hacking Detections 77 | . 2 . 9 2 3 8 . 11 . 12 . . . . . . 12 . . . . 5 . 4 . . . . 5 . . 4 . Full Trace Events 8 | . . . 4 1 . 1 . . . . . . . . . . 1 . . . . . . . . . . . . . . 1 . Feedback Events 1 | . . . . 1 . . . . . . . . . . . . . . . . . . . . . . . . . . . . . Corruption 1 | . . . . 1 . . . . . . . . . . . . . . . . . . . . . . . . . . . . . Feedback Blocked . | . . . . . . . . . . . . . . . . . . . . . . . . . . . . . . . . . . Robot Schematics Acquired 3 | . . . . . . . . . . . . . 3 . . . . . . . . . . . . . . . . . . . . Robots Built . | . . . . . . . . . . . . . . . . . . . . . . . . . . . . . . . . . . Authchips . | . . . . . . . . . . . . . . . . . . . . . . . . . . . . . . . . . . Time . | . . . . . . . . . . . . . . . . . . . . . . . . . . . . . . . . . . Total Robot Build Rating . | . . . . . . . . . . . . . . . . . . . . . . . . . . . . . . . . . . Part Schematics Acquired 17 | . . . . . . 1 . . . . . . 8 . . . 1 . . . . 3 . . . . 4 . . . . . . Parts Built . | . . . . . . . . . . . . . . . . . . . . . . . . . . . . . . . . . . Authchips . | . . . . . . . . . . . . . . . . . . . . . . . . . . . . . . . . . . Time . | . . . . . . . . . . . . . . . . . . . . . . . . . . . . . . . . . . Total Part Build Rating . | . . . . . . . . . . . . . . . . . . . . . . . . . . . . . . . . . . Parts Repaired 5 | . . . . . . . . . . 2 . . . . . . 2 . . . . . . 1 . . . . . . . . . Time 265 | . . . . . . . . . . 88 . . . . . . 88 . . . . . . 89 . . . . . . . . . Parts Recycled . | . . . . . . . . . . . . . . . . . . . . . . . . . . . . . . . . . . Recycled Matter . | . . . . . . . . . . . . . . . . . . . . . . . . . . . . . . . . . . Retrieved Matter . | . . . . . . . . . . . . . . . . . . . . . . . . . . . . . . . . . . Retrieved Components 11 | . . . . . . 10 . . . . . . . . . . 1 . . . . . . . . . . . . . . . . Parts Scanalyzed . | . . . . . . . . . . . . . . . . . . . . . . . . . . . . . . . . . . Part Schematics Acquired . | . . . . . . . . . . . . . . . . . . . . . . . . . . . . . . . . . . Parts Damaged . | . . . . . . . . . . . . . . . . . . . . . . . . . . . . . . . . . . Bothacking | -11 -10 -10 -9 -8 -8 -8 -8 -6 -6 -6 -6 -6 -6 -5 -5 -5 -5 -5 -5 -5 -4 -4 -4 -4 -4 -4 -4 -3 -3 -3 -3 -2 -2 ------------ Run | Yrd Mat Min Mat Mat Sto Rec Scr Fac Was Fac Low Low Dat Pro Fac Was Fac Upp Upp War Pro Fac Was Fac Upp Upp Zhi Pro Res Arm Lab Res Qua Used RIF Installer . | . . . . . . . . . . . . . . . . . . . . . . . . . . . . . . . . . . Robots Hacked 3 | . . . . . . . . 2 . . . . . . . . . . . . . . . . . . . . . . . 1 . Non-combat 3 | . . . . . . . . 2 . . . . . . . . . . . . . . . . . . . . . . . 1 . Combat . | . . . . . . . . . . . . . . . . . . . . . . . . . . . . . . . . . . Robot Hacks Applied 3 | . . . . . . . . 2 . . . . . . . . . . . . . . . . . . . . . . . 1 . parse_system 1 | . . . . . . . . . . . . . . . . . . . . . . . . . . . . . . . . 1 . find_chute 2 | . . . . . . . . 2 . . . . . . . . . . . . . . . . . . . . . . . . . Relay Couplers Released . | . . . . . . . . . . . . . . . . . . . . . . . . . . . . . . . . . . Fabnet Peak Effective % . | . . . . . . . . . . . . . . . . . . . . . . . . . . . . . . . . . . Robots Rewired . | . . . . . . . . . . . . . . . . . . . . . . . . . . . . . . . . . . Allies Hacked . | . . . . . . . . . . . . . . . . . . . . . . . . . . . . . . . . . . Hacks Repelled . | . . . . . . . . . . . . . . . . . . . . . . . . . . . . . . . . . . Allies | -11 -10 -10 -9 -8 -8 -8 -8 -6 -6 -6 -6 -6 -6 -5 -5 -5 -5 -5 -5 -5 -4 -4 -4 -4 -4 -4 -4 -3 -3 -3 -3 -2 -2 -------- Run | Yrd Mat Min Mat Mat Sto Rec Scr Fac Was Fac Low Low Dat Pro Fac Was Fac Upp Upp War Pro Fac Was Fac Upp Upp Zhi Pro Res Arm Lab Res Qua Total Allies 37 | . . . . . 2 . . . . . . . . . . . 4 . . . . 1 20 . . . . . . 10 . . . Largest Group 20 | . . . . . 2 . . . . . . . . . . . 2 . . . . 1 20 18 . . . . . 10 . . . Highest-Rated Group 852 | . . . . . 20 . . . . . . . . . . . 52 . . . . 45 852 802 . . . . . 481 . . . Highest-Rated Ally 58 | . . . . . 10 . . . . . . . . . . . 26 . . . . 45 50 50 . . . . . 58 . . . Total Orders . | . . . . . . . . . . . . . . . . . . . . . . . . . . . . . . . . . . Ally Attacks 93 | . . . . . . . . . . . . . . . . . . . . . . . 16 77 . . . . . . . . . Total Damage 4075 | . . . . . . . . . . . . . . . . . . . . . . . 762 3313 . . . . . . . . . Kills 25 | . . . . . . . . . . . . . . . . . . . . . . . 2 23 . . . . . . . . . Allies Corrupted . | . . . . . . . . . . . . . . . . . . . . . . . . . . . . . . . . . . Allies Melted 1 | . . . . . . . . . . . . . . . . . . . . . . . . 1 . . . . . . . . . Intel | -11 -10 -10 -9 -8 -8 -8 -8 -6 -6 -6 -6 -6 -6 -5 -5 -5 -5 -5 -5 -5 -4 -4 -4 -4 -4 -4 -4 -3 -3 -3 -3 -2 -2 ------- Run | Yrd Mat Min Mat Mat Sto Rec Scr Fac Was Fac Low Low Dat Pro Fac Was Fac Upp Upp War Pro Fac Was Fac Upp Upp Zhi Pro Res Arm Lab Res Qua Active Infowar (turns) 5650 | . . . . 50 86 105 758 562 16 481 145 100 18 89 63 26 751 98 74 169 35 287 160 403 91 98 70 30 183 66 114 340 182 Optics 2525 | . . . . . . . . . . . . . . . . . 125 98 74 169 35 287 160 403 91 98 70 30 183 66 114 340 182 Sensors 4774 | . . . . 50 86 105 758 562 16 481 145 100 18 89 63 26 751 98 74 169 35 287 160 394 . . . . . . . 307 . IFF 179 | . . . . . . . . . . . . . . . . . . . . . . . . . 64 91 24 . . . . . . Cloaking 281 | . . . . . . . . . . . . . . . . . . . . 1 . 50 9 39 4 12 . . 64 . 29 73 . Robot Analysis Total 10 | . . . . . . 1 4 . . 1 . . . . . . . . . . . . . . . . 4 . . . . . . Derelict Logs Recovered 8 | . . . . . . . . . . . 1 2 . 1 . . . 3 . . . . . . . 1 . . . . . . . Drone Launches . | . . . . . . . . . . . . . . . . . . . . . . . . . . . . . . . . . . Drone Recoveries . | . . . . . . . . . . . . . . . . . . . . . . . . . . . . . . . . . . Exploration | -11 -10 -10 -9 -8 -8 -8 -8 -6 -6 -6 -6 -6 -6 -5 -5 -5 -5 -5 -5 -5 -4 -4 -4 -4 -4 -4 -4 -3 -3 -3 -3 -2 -2 ------------- Run | Yrd Mat Min Mat Mat Sto Rec Scr Fac Was Fac Low Low Dat Pro Fac Was Fac Upp Upp War Pro Fac Was Fac Upp Upp Zhi Pro Res Arm Lab Res Qua Turns Passed 9156 | 78 355 629 2426 57 86 105 758 562 16 481 145 100 18 89 63 26 751 98 74 169 35 287 160 403 91 98 70 30 194 66 114 340 182 Spaces Moved 16377 | 47 175 328 1344 131 244 385 899 1448 64 1077 509 364 75 310 156 81 1669 350 301 636 166 778 281 958 415 416 234 175 809 148 220 836 348 Core 275 | 10 . . . . . . . . . . . . . . . . . . . . . . . . . . . . . . . 10 255 Treads 913 | 37 175 328 373 . . . . . . . . . . . . . . . . . . . . . . . . . . . . . . Legs . | . . . . . . . . . . . . . . . . . . . . . . . . . . . . . . . . . . Wheels 961 | . . . 961 . . . . . . . . . . . . . . . . . . . . . . . . . . . . . . Hover . | . . . . . . . . . . . . . . . . . . . . . . . . . . . . . . . . . . Flight 14228 | . . . 10 131 244 385 899 1448 64 1077 509 364 75 310 156 81 1669 350 301 636 166 778 281 958 415 416 234 175 809 148 220 826 93 Fastest Speed 5 | 50 160 160 95 26 26 26 26 24 24 24 24 24 24 24 21 24 11 11 24 21 21 21 21 11 11 11 17 17 6 18 18 5 32 Average Speed 39 | 136 160 160 129 26 26 26 83 24 24 24 24 24 24 24 22 24 23 23 24 21 21 21 21 20 19 19 17 17 16 18 18 18 45 Slowest Speed 274 | 160 160 160 274 26 26 26 96 96 24 24 24 24 24 24 24 24 24 24 24 24 21 99 94 21 23 20 17 17 18 18 18 200 50 Overloaded Moves 330 | . . . . . . . . . . . . . . . . . 55 14 . . . . . 37 38 27 . . 54 . . 103 2 Propulsion Burnouts . | . . . . . . . . . . . . . . . . . . . . . . . . . . . . . . . . . . Robots Hopped 59 | . . . . . 6 3 . 5 . 9 . . . . . . 7 1 . . . . . 10 1 . . . 11 . . 5 1 Potential Cave-ins . | . . . . . . . . . . . . . . . . . . . . . . . . . . . . . . . . . . Cave-ins Triggered . | . . . . . . . . . . . . . . . . . . . . . . . . . . . . . . . . . . Teleports 1 | . . . . . . . . . . . . . . . . . . . . . . . . . . . . . . 1 . . . Exploration Rate (%) 51 | 4 45 73 90 18 36 69 73 37 80 37 54 57 68 50 5 80 49 62 51 91 44 22 86 33 60 66 61 45 25 8 94 23 47 Regions Visited 33 Branch Regions 19 Pre-discovered Areas 12 | . . . . . . 5 . 1 . . . 1 1 1 . . . . . . . . . . . . 3 . . . . . . Known Exits Taken 22 | . 1 . . 1 1 . . . . 1 1 1 1 1 . . 1 1 1 1 1 . . 1 1 1 1 1 1 1 1 1 . Unknown Exits Taken 5 | 1 . 1 1 . . 1 1 . . . . . . . . . . . . . . . . . . . . . . . . . . Scrap Searched 23 | . . 1 . . . . 8 . . . 1 2 . 1 . . . 1 1 . . . . . 3 3 . 2 . . . . . Spaces Dug 169 | . . . 13 . . . . 24 . 18 4 . . 1 2 . 27 . . . . 17 . 28 . 2 . . 9 1 . 22 1 Terrain Destroyed 242 | . . . 29 . . . . 24 . 18 4 . . 1 2 . 27 . . . . 28 . 74 . 2 . . 9 1 . 22 1 Melee 119 | . . . . . . . . 23 . 17 2 . . 1 2 . 26 . . . . 12 . 9 . 2 . . 8 1 . 15 1 Projectile 41 | . . . 18 . . . . 1 . 1 2 . . . . . 1 . . . . 5 . 5 . . . . 1 . . 7 . AOE 82 | . . . 11 . . . . . . . . . . . . . . . . . . 11 . 60 . . . . . . . . . Terrain Rammed . | . . . . . . . . . . . . . . . . . . . . . . . . . . . . . . . . . . Walls Destroyed . | . . . . . . . . . . . . . . . . . . . . . . . . . . . . . . . . . . Machines Disabled . | . . . . . . . . . . . . . . . . . . . . . . . . . . . . . . . . . . Actions | -11 -10 -10 -9 -8 -8 -8 -8 -6 -6 -6 -6 -6 -6 -5 -5 -5 -5 -5 -5 -5 -4 -4 -4 -4 -4 -4 -4 -3 -3 -3 -3 -2 -2 --------- Run | Yrd Mat Min Mat Mat Sto Rec Scr Fac Was Fac Low Low Dat Pro Fac Was Fac Upp Upp War Pro Fac Was Fac Upp Upp Zhi Pro Res Arm Lab Res Qua Total 18359 | 58 220 410 1743 157 258 384 908 1610 63 1258 526 375 74 322 179 86 1963 364 301 666 165 860 378 1123 423 429 253 174 842 181 269 975 362 Wait 1172 | . 10 50 153 7 17 . . 106 . 138 12 12 . 12 13 6 218 15 . 3 . 29 87 146 2 4 . . 26 5 5 96 . Move 16239 | 46 174 327 1343 130 232 378 898 1438 63 1062 508 363 74 309 156 80 1654 347 300 635 165 778 280 942 412 415 233 174 787 147 219 824 346 Hop 48 | . . . . . 5 3 . 5 . 5 . . . . . . 7 1 . . . . . 5 1 . . . 10 . . 5 1 Pick Up 92 | 6 9 5 23 3 . . 5 4 . 4 . . . . . . 6 . 1 6 . 4 3 1 3 1 3 . 1 1 1 1 1 Fast Attach 80 | 6 1 1 19 . 1 1 . . . 2 . . . . 1 . 3 . . 4 . 1 2 . 2 2 3 . 2 11 11 2 5 Attach 56 | . 1 4 9 6 . . . 4 . . 1 . . . 3 . 5 . . 2 . 5 1 1 2 1 1 . 2 1 4 1 2 Detach 20 | . . . 5 2 . . . 1 . . 1 . . . 2 . 1 . . . . . . . . . . . 1 1 4 1 1 Swap 81 | . . 2 16 1 1 2 4 7 . 5 . . . . . . 9 . . 6 . 9 2 5 . 2 3 . . 2 . 5 . Drop 122 | . 7 5 19 8 1 . 1 9 . 4 . . . . . . 9 . . 10 . 6 3 2 1 2 4 . 2 10 9 8 2 Fire 207 | . 17 16 155 . . . . 1 . 1 2 . . . . . 2 . . . . 3 . 4 . . . . 1 . . 5 . Melee 209 | . . . . . 1 . . 35 . 21 2 . . 1 4 . 36 . . . . 25 . 17 . 2 6 . 10 3 16 26 4 Ram . | . . . . . . . . . . . . . . . . . . . . . . . . . . . . . . . . . . Kick . | . . . . . . . . . . . . . . . . . . . . . . . . . . . . . . . . . . Crush 2 | . 1 . 1 . . . . . . . . . . . . . . . . . . . . . . . . . . . . . . Escape Stasis 30 | . . . . . . . . . . 16 . . . . . . 13 . . . . . . . . . . . . . . 1 . Rewire . | . . . . . . . . . . . . . . . . . . . . . . . . . . . . . . . . . . Trap 1 | . . . . . . . . . . . . . . . . . . 1 . . . . . . . . . . . . . . . Miscellaneous . | . . . . . . . . . . . . . . . . . . . . . . . . . . . . . . . . . . Route ------- -11/Scrapyard -10/Materials (discovered 2 exits: *Mat / *Min) -10/Mines (discovered 2 exits: *Mat / [*Sub]) -9/Materials (discovered 4 exits: *Mat x3 / *Min) -8/Materials (discovered 2 exits: *Sto x2) -8/Storage -8/Recycling -8/Scraptown -6/Factory (discovered 3 exits: *Fac / Low x2) -6/Waste -6/Factory (discovered 6 exits: Fac x4 / *Low x2) -6/Lower Caves -6/Lower Caves (discovered 2 exits: *Fac / *Dat) -6/Data Miner -5/Proximity Caves -5/Factory -5/Waste -5/Factory (discovered 3 exits: *Fac x2 / *Upp) -5/Upper Caves -5/Upper Caves -5/Warlord -4/Proximity Caves -4/Factory (discovered 3 exits: *Res / *Upp x2) -4/Waste -4/Factory (discovered 4 exits: *Res x2 / *Upp x2) -4/Upper Caves -4/Upper Caves (discovered 2 exits: Res / *Zhi) -4/Zhirov -3/Proximity Caves -3/Research (discovered 3 exits: *Arm / Tes x2) -3/Armory -3/Lab -2/Research (discovered 3 exits: *Acc / *Qua x2) -2/Quarantine (discovered 1 exit: *Acc) History --------- Turn | Location | Event 7 | -11/Scrapyard | Discovered new exit (range 14) 79 | -11/Scrapyard | Entered Materials 128 | -10/Materials | Identified exit to Mines 203 | -10/Materials | Discovered new exit (range 8) 310 | -10/Materials | Build established: Mutant 434 | -10/Materials | Entered Mines 553 | -10/Mines | Assembled infested the area 558 | -10/Mines | Assisted by a Guerilla fighting off Assembled 619 | -10/Mines | Core integrity fell below 50% 646 | -10/Mines | Lost 4 parts (1p1u2w) 708 | -10/Mines | Discovered new exit (range 4) 834 | -10/Mines | Met a Derelict who couldn't figure out how to use a Trap Extractor 1007 | -10/Mines | Discovered new exit (range 9) 1063 | -10/Mines | Entered Materials 1063 | -9/Materials | Evolved 2 slots: Propulsion x1, Utility x1 1565 | -9/Materials | Build established: Scavenger-Mutant 1699 | -9/Materials | Discovered new exit (range 16) 1754 | -9/Materials | Discovered new exit (range 16) 2343 | -9/Materials | Discovered new exit (range 8) 2820 | -9/Materials | Lost 3 parts (1n1u1w) 2955 | -9/Materials | Lost 3 parts (1p1n1w) 3063 | -9/Materials | First assault squad dispatched 3266 | -9/Materials | Discovered new exit (range 13) 3292 | -9/Materials | Identified exit to Mines 3489 | -9/Materials | Entered another Materials area 3489 | -8/Materials | Evolved 2 slots: Propulsion x1, Utility x1 3536 | -8/Materials | Identified exit to Storage 3546 | -8/Materials | Entered Storage 3577 | -8/Storage | Identified exit to Recycling 3597 | -8/Storage | Central database locked down 3631 | -8/Storage | Used back door to open Recycling access 3632 | -8/Storage | Entered Recycling 3730 | -8/Recycling | Scanned before Scraplab entrance 3734 | -8/Recycling | Entered Scraplab 3736 | -8/Recycling | Discovered new exit (range 3) 3737 | -8/Recycling | Entered Scraptown 3737 | -8/Scraptown | System corruption cleaned by C-Scrubber 3821 | -8/Scraptown | Heard Great Nut preacher, LISTEN AND RECITE! 3836 | -8/Scraptown | Visited Spacefarers 3877 | -8/Scraptown | Visited UFD Registry 3877 | -8/Scraptown | Registered with UFD as "Zerosys" 3888 | -8/Scraptown | Visited Cyclists 3895 | -8/Scraptown | Entered Cyclist Reading Room 3947 | -8/Scraptown | Visited TADAMA 3960 | -8/Scraptown | Visited Cave Peace 3976 | -8/Scraptown | Visited Bundlers 4032 | -8/Scraptown | Visited Red Mages 4094 | -8/Scraptown | Build established: Mutant 4107 | -8/Scraptown | Visited Modified Component R&D 4144 | -8/Scraptown | Visited Junk Repository 4185 | -8/Scraptown | Visited Sword Containment 4221 | -8/Scraptown | Visited Derelict Rescue Squad 4230 | -8/Scraptown | Visited Analyses Database 4319 | -8/Scraptown | Visited Science Guys 4350 | -8/Scraptown | Visited Chapter 10 4364 | -8/Scraptown | Visited Abandonware Association 4374 | -8/Scraptown | Learned abandonware demo "KABOOM.EXE" 4440 | -8/Scraptown | Met Optimus 4440 | -8/Scraptown | Accepted into 0bPrime 4491 | -8/Scraptown | Discovered new exit (range 5) 4495 | -8/Scraptown | Entered Factory 4495 | -6/Factory | Evolved 4 slots: Power x1, Propulsion x1, Utility x2 4536 | -6/Factory | Loaded intel: 8 recycling unit locations 4586 | -6/Factory | Learned location of Protoforge (-2) 4792 | -6/Factory | Build established: Hacker-Sprinter 4850 | -6/Factory | Identified exit to Lower Caves 4876 | -6/Factory | Discovered new exit (range 4) 4877 | -6/Factory | Identified exit to Factory 5057 | -6/Factory | Sucked down chute 5057 | -6/Factory | Entered Waste 5059 | -6/Waste | Spotted C-40 Crusher 5063 | -6/Waste | Spotted C-40 Crusher 5066 | -6/Waste | Spotted C-40 Crusher 5066 | -6/Waste | Spotted C-40 Crusher 5067 | -6/Waste | Spotted C-40 Crusher 5069 | -6/Waste | Discovered new exit (range 16) 5069 | -6/Waste | Spotted C-40 Crusher 5072 | -6/Waste | Identified exit to Factory 5073 | -6/Waste | Entered Factory 5159 | -6/Factory | Loaded intel: 8 recycling unit locations 5176 | -6/Factory | Spotted B-75 Beast 5338 | -6/Factory | Repaired Imp. Propulsion Shielding 5389 | -6/Factory | Repaired Nuclear Pulse Thruster 5554 | -6/Factory | Entered Lower Caves 5555 | -6/Lower Caves | Encountered a Warlord checkpoint 5675 | -6/Lower Caves | Identified exit to Lower Caves 5699 | -6/Lower Caves | Entered another Lower Caves area 5706 | -6/Lower Caves | Learned Factory emergency access door positions 5722 | -6/Lower Caves | Discovered exit to Factory (range 10) 5730 | -6/Lower Caves | Spotted B-75 Beast 5797 | -6/Lower Caves | Discovered new exit (range 7) 5798 | -6/Lower Caves | Identified exit to Data Miner 5799 | -6/Lower Caves | Entered Data Miner 5799 | -6/Data Miner | Discovered new exit (range 6) 5804 | -6/Data Miner | Met Data Miner 5808 | -6/Data Miner | Learned location of Section 7 (-2) 5808 | -6/Data Miner | Acquired the access code to Warlord's prototype stash 5812 | -6/Data Miner | Received God Mode back door access code from Data Miner 5817 | -6/Data Miner | Identified exit to Proximity Caves 5817 | -6/Data Miner | Entered Proximity Caves 5903 | -5/Proximity Caves | Discovered exit to Factory (range 15) 5906 | -5/Proximity Caves | Entered Factory 5906 | -5/Factory | Evolved 2 slots: Propulsion x1, Utility x1 5939 | -5/Factory | Discovered new exit (range 7) 5940 | -5/Factory | Identified exit to Upper Caves 5969 | -5/Factory | Sucked down chute 5969 | -5/Factory | Entered Waste 5973 | -5/Waste | Spotted C-40 Crusher 5974 | -5/Waste | Spotted C-40 Crusher 5974 | -5/Waste | Spotted C-40 Crusher 5977 | -5/Waste | Spotted C-40 Crusher 5980 | -5/Waste | Spotted C-40 Crusher 5982 | -5/Waste | Discovered new exit (range 12) 5982 | -5/Waste | Spotted C-40 Crusher 5984 | -5/Waste | EMP discharged 5994 | -5/Waste | Identified exit to Factory 5995 | -5/Waste | Entered Factory 6043 | -5/Factory | Repaired System Restoration Module 6072 | -5/Factory | Discovered new exit (range 4) 6072 | -5/Factory | Identified exit to Factory 6160 | -5/Factory | Loaded intel: 8 recycling unit locations 6418 | -5/Factory | Repaired Broken Enh. Nuclear Core 6562 | -5/Factory | Discovered exit to Factory (range 16) 6615 | -5/Factory | Discovered exit to Upper Caves (range 5) 6746 | -5/Factory | Entered Upper Caves 6769 | -5/Upper Caves | Identified exit to Upper Caves 6772 | -5/Upper Caves | Learned location of 1 exit from Upper Caves 6844 | -5/Upper Caves | Encountered a Warlord checkpoint 6844 | -5/Upper Caves | Entered another Upper Caves area 6845 | -5/Upper Caves | Identified exit to Warlord 6918 | -5/Upper Caves | Entered Warlord 6920 | -5/Warlord | Build established: Hacker-Scout 6928 | -5/Warlord | System corruption cleaned by Quarantine Array 6951 | -5/Warlord | Opened Warlord's prototype stash 6958 | -5/Warlord | Found Prototype Device 6958 | -5/Warlord | Identified Exp. Focal Shield 6962 | -5/Warlord | Found Prototype Device 6962 | -5/Warlord | Identified Exp. Cloaking Device 6970 | -5/Warlord | Found Prototype Reactor 6974 | -5/Warlord | Found Prototype Processor 6974 | -5/Warlord | Identified Exp. Armor Integrity Analyzer 6999 | -5/Warlord | Rebuked by Warlord 7024 | -5/Warlord | Warlord's base attacked by MAIN.C 7041 | -5/Warlord | Found Prototype Energy Gun 7041 | -5/Warlord | Identified Vortex Rail 7047 | -5/Warlord | Found Vortex Rail 7081 | -5/Warlord | Opened side exit 7085 | -5/Warlord | Discovered new exit (range 10) 7087 | -5/Warlord | Identified exit to Proximity Caves 7087 | -5/Warlord | Entered Proximity Caves 7119 | -4/Proximity Caves | Discovered exit to Factory (range 14) 7122 | -4/Proximity Caves | Entered Factory 7122 | -4/Factory | Evolved 2 slots: Utility x2 7148 | -4/Factory | Discovered new exit (range 6) 7149 | -4/Factory | Identified exit to Upper Caves 7180 | -4/Factory | Loaded intel: 8 recycling unit locations 7368 | -4/Factory | Discovered new exit (range 7) 7372 | -4/Factory | Identified exit to Research 7384 | -4/Factory | Spotted B-86 Titan 7409 | -4/Factory | Sucked down chute 7409 | -4/Factory | Entered Waste 7410 | -4/Waste | Joined by Warlord forces that had cleared the area 7425 | -4/Waste | Found Prototype Launcher 7425 | -4/Waste | Identified Ragnarok Missile Launcher 7435 | -4/Waste | Discovered new exit (range 10) 7439 | -4/Waste | A Compactor rumbled back to life 7440 | -4/Waste | Spotted C-40 Crusher 7451 | -4/Waste | Allies destroyed C-40 Crusher 7545 | -4/Waste | Identified exit to Factory 7569 | -4/Waste | Entered Factory 7569 | -4/Factory | Accompanied by 18 allies 7634 | -4/Factory | Loaded intel: 8 recycling unit locations 7743 | -4/Factory | Repaired Cld. Nuclear Pulse Thruster 7791 | -4/Factory | Lost 4 allies 7840 | -4/Factory | Build established: Hacker-Ninja 7890 | -4/Factory | Discovered exit to Research (range 18) 7932 | -4/Factory | Discovered exit to Research (range 4) 7972 | -4/Factory | Incoming investigation squad redirected 7972 | -4/Factory | Entered Upper Caves 8016 | -4/Upper Caves | Lost 4 parts (2n1u1w) 8056 | -4/Upper Caves | Spotted B-86 Titan 8061 | -4/Upper Caves | Encountered a Warlord checkpoint 8061 | -4/Upper Caves | Discovered new exit (range 10) 8063 | -4/Upper Caves | Identified exit to Upper Caves 8063 | -4/Upper Caves | Entered another Upper Caves area 8080 | -4/Upper Caves | Spotted B-86 Titan 8151 | -4/Upper Caves | Discovered new exit (range 5) 8151 | -4/Upper Caves | Identified exit to Zhirov 8155 | -4/Upper Caves | Found Alien Artifact 8155 | -4/Upper Caves | Identified Core Expander 8155 | -4/Upper Caves | Installed Core Expander, added new Propulsion slot 8161 | -4/Upper Caves | Entered Zhirov 8161 | -4/Zhirov | Discovered new exit (range 3) 8168 | -4/Zhirov | Learned location of Quarantine (-2) 8168 | -4/Zhirov | Learned location of Testing (-3) 8168 | -4/Zhirov | Learned location of Command (-1) 8173 | -4/Zhirov | Found Alien Artifact 8173 | -4/Zhirov | Identified Integrated Reactor 8173 | -4/Zhirov | Installed Integrated Reactor, increased core energy generation (+10) 8179 | -4/Zhirov | Found Alien Artifact 8231 | -4/Zhirov | Identified exit to Proximity Caves 8231 | -4/Zhirov | Entered Proximity Caves 8259 | -3/Proximity Caves | Discovered exit to Research (range 9) 8261 | -3/Proximity Caves | Entered Research 8261 | -3/Research | Evolved 2 slots: Utility x1, Weapon x1 8285 | -3/Research | Build established: Hacker-Sprinter 8327 | -3/Research | Spotted B-86 Titan 8332 | -3/Research | Identified exit to Armory 8332 | -3/Research | Identified exit to Testing 8343 | -3/Research | Spotted B-86 Titan 8382 | -3/Research | Loaded intel: 5 recycling unit locations 8455 | -3/Research | Entered Armory 8459 | -3/Armory | Found Prototype Device 8459 | -3/Armory | Identified Exp. Thermal Defense Suite 8461 | -3/Armory | Found Prototype Processor 8461 | -3/Armory | Identified Exp. Melee Analysis Suite 8499 | -3/Armory | Assisted by bots powering up and referring to "LRC-V3" 8520 | -3/Armory | Identified Transdimensional Reconstructor 8520 | -3/Armory | Warped through subspace to slip node 8520 | -3/Armory | Discovered new exit (range 1) 8520 | -3/Armory | Identified exit to Lab 8521 | -3/Armory | Entered Lab 8523 | -3/Lab | Discovered new exit (range 9) 8524 | -3/Lab | Identified exit to Research 8525 | -3/Lab | Unable to decrypt terminal 8525 | -3/Lab | Opened the door to a hidden lab 8525 | -3/Lab | Detected by scanners 8526 | -3/Lab | Gained access to the hidden lab's interior 8534 | -3/Lab | Confronted by A5 8571 | -3/Lab | Destroyed A5 8579 | -3/Lab | Found Prototype Protection 8579 | -3/Lab | Identified Exp. Powered Armor 8582 | -3/Lab | Found Prototype Energy Cannon 8582 | -3/Lab | Identified Warp Cannon 8584 | -3/Lab | Found Prototype Energy Gun 8584 | -3/Lab | Identified Hyp. EM Gauss Rifle 8589 | -3/Lab | Found Prototype Hackware 8589 | -3/Lab | Identified Deep Network Scanner 8599 | -3/Lab | Found Alien Artifact 8599 | -3/Lab | Identified Core Regenerator 8599 | -3/Lab | Used Core Regenerator, restored core integrity (+124) 8604 | -3/Lab | Found Alien Artifact 8604 | -3/Lab | Identified Integrated Dissipator 8604 | -3/Lab | Installed Integrated Dissipator, increased core heat dissipation (+20) 8619 | -3/Lab | Found Alien Artifact 8619 | -3/Lab | Identified Core Reset Matrix 8619 | -3/Lab | Used Core Reset Matrix 8623 | -3/Lab | Sensed 1 artifact in vicinity 8631 | -3/Lab | Discovered exit to Research (range 19) 8635 | -3/Lab | Entered Research 8635 | -2/Research | Evolved 2 slots: Weapon x2 8907 | -2/Research | Intercept squad dispatched 8927 | -2/Research | Discovered new exit (range 6) 8928 | -2/Research | Identified exit to Access 8930 | -2/Research | Identified exit to Quarantine 8941 | -2/Research | Spotted Tracker 8941 | -2/Research | Spotted Tracker 8975 | -2/Research | Entered Quarantine 8976 | -2/Quarantine | Detected hypermatrix surge 8976 | -2/Quarantine | Sensed 4 artifacts in vicinity 9004 | -2/Quarantine | Lost 16 parts (2p7n6u1w) 9006 | -2/Quarantine | Found Core Cannon 9016 | -2/Quarantine | Discovered exit to Access (range 6) 9094 | -2/Quarantine | Core integrity fell below 50% 9134 | -2/Quarantine | Intercept squad dispatched 9142 | -2/Quarantine | Spotted Tracker 9142 | -2/Quarantine | Spotted Tracker 9145 | -2/Quarantine | Spotted Fortress 9149 | -2/Quarantine | Core integrity fell below 20% 9157 | -2/Quarantine | Destroyed by Tracker with Linked Autogun Last Messages --------------- 09093_ Adv. Signal Interpreter destroyed. 09093_ M-36 Artificer suffers critical hit (Burn). 09094_ Penetrated by Slug. 09094_ Slug penetrates M-36 Artificer. 09096_ Penetrated by Slug. 09097_ Slug penetrates Wall. 09100_ Slug penetrates Door. 09100_ Penetrated by Slug. 09101_ Acquired Unknown Treads. 09101_ Identified Adv. Medium Treads. 09104_ Slug penetrates Wall. 09111_ Gravity Flail destroyed. 09112_ Slug penetrates G-73 Enforcer. 09112_ Slug penetrates Wall. 09134_ ALERT: Reliable intel has pinpointed LRC-V3, intercept squad en route. 09148_ Knocked back. 09149_ Adv. Medium Treads destroyed. 09151_ Adv. Hacking Suite destroyed. Map ----- +----------------------------------------------------+ | | | | | | | | | | | | | | | | | | | ?????????????????????????????????????????????????? | | ?????????????????????????????????????????????????? | | ?????????????????????????????????????????????????? | | ?????????????????????????????????????????????????? | | ?????????????????????????????????????????????????? | | ?????????????????????????????????????????????????? | | ?????????????????????????????????????????????????? | | ?????????????????????????????????????????????????? | | ?????????????????????????????????????????????????? | | ????????##???????????????????????????????????????? | | #########;####################################???? | | ???? | | ??? | | ??? | | % ??? | | s ?? | | s @ ?? | | ########## FFF ;####################???????????? | | ?????????#" "#???????????????????????????????? | | ?????????#"" ""#???????????????????????????????? | | ?????????#"" ""#???????????????????????????????? | | ?????????#"" ""#???????????????????????????????? | | ?????????#"""""""#???????????????????????????????? | | ?????????#########???????????????????????????????? | | ?????????????????????????????????????????????????? | | ?????????????????????????????????????????????????? | | ?????????????????????????????????????????????????? | | ?????????????????????????????????????????????????? | | ?????????????????????????????????????????????????? | | ?????????????????????????????????????????????????? | | ?????????????????????????????????????????????????? | | ?????????????????????????????????????????????????? | | ?????????????????????????????????????????????????? | | ?????????????????????????????????????????????????? | | ?????????????????????????????????????????????????? | | ?????????????????????????????????????????????????? | | ?????????????????????????????????????????????????? | | ?????????????????????????????????????????????????? | | ?????????????????????????????????????????????????? | | ?????????????????????????????????????????????????? | | ?????????????????????????????????????????????????? | +----------------------------------------------------+ Best States ------------- Heat Dissipation 72 Energy Generation 37 Energy Capacity 350 Matter Stores 300 Matter Capacity 300 Sight Range 23 Robot Scan Range 18 Terrain Scan Density 10 Cloak Strength 4 Armor Coverage 400 Resistance: TH 30 Core Shielding 20 Propulsion Shielding 66 Utility Shielding 66 Phase Shifting 10 Evasion (%) 88 Recoil Reduction 2 Offensive Hacking 51 Defensive Hacking 14 Item Schematics ----------------- None Robot Schematics ------------------ None Fabricated ------------ Nothing Repaired ---------- Imp. Propulsion Shielding | 57% | -6/Factory Nuclear Pulse Thruster | 50% | -6/Factory System Restoration Module | 46% | -5/Factory Enh. Nuclear Core | 51% | -5/Factory | Broken Cld. Nuclear Pulse Thruster | 52% | -4/Factory Alien Tech Used ----------------- Core Expander Integrated Reactor Transdimensional Reconstructor Core Regenerator Integrated Dissipator Core Reset Matrix Achievements -------------- Below Challenges ------------ None Game ------ Seed InertialAssaultMegatreads Manual? 0 Play Time 03:06:15 Cumulative 272.3 hours Start 2025.06.01 @ 09:19:22 End 2025.06.01 @ 12:26:11 Sessions 1 Manual Loads 0 Difficulty Rogue Special Mode None Game No. 139 Rogue 139 Adventurer 0 Explorer 0 Win Type - Total 5 Types 4/0/1/0/0/0/0/0/0/0 Lore% 77 Gallery% 77 Achievement% 65 Wizard Run 0 Options --------- Layout 1 ASCII 0 Keyboard 0 Movement Mouse Keybinds 0 Fullscreen 1 Font 24/Smallcaps Map View 50x35 Zoom Use 0% Tactical HUD 1 Map Filters NONE Filters NONE Steam 1 RUN: 9b22d0c9-e932-4568-89a6-4e5d6e48b814